[Event "Frauenbundesliga 2023-24"]
[Site "Deizisau"]
[Date "2024.03.24"]
[Round "8.6"]
[White "Germann, Heike"]
[Black "Gheng, Simona"]
[Result "0-1"]
[ECO "D58"]
[WhiteElo "1978"]
[BlackElo "1974"]
[Annotator "NA RC"]
[PlyCount "108"]
[EventDate "2023.10.09"]
[EventType "team-tourn"]
[EventCountry "GER"]
[SourceTitle "playchess.com"]
[Source "ChessBase"]
[SourceQuality "1"]
[WhiteTeam "SV Weißblau Allianz Leipzig"]
[BlackTeam "Schachfreunde Deizisau"]
[TimeControl "40/5400+30:1800+30"]

1. d4 {[%emt 0:00:05]} d5 {[%emt 0:00:11]} 2. c4 {[%emt 0:00:30]} e6 {[%emt 0:00:30]} 3. cxd5 {[%emt 0:00:30]} exd5 {[%emt 0:00:30]} 4. Nc3 {[%emt 0:00:30]} Nf6 {[%emt 0:00:30]} 5. Bg5 {[%emt 0:00:30]} Be7 {[%emt 0:00:30]} 6. e3 {[%emt 0:00:30]} h6 {[%emt 0:00:30]} 7. Bh4 {[%emt 0:00:30]} b6 {[%emt 0:00:30]} 8. Nf3 {[%emt 0:00:30]} O-O {[%emt 0:00:30]} 9. Be2 {[%emt 0:00:30]} Bb7 {[%emt 0:00:30]} 10. O-O {[%emt 0:00:30]} Nbd7 {[%emt 0:00:30]} 11. Rc1 {[%emt 0:00:30]} c5 {[%emt 0:00:30]} 12. dxc5 {[%emt 0:00:30]} bxc5 {[%emt 0:00:30]} 13. Qc2 {[%emt 0:00:30]} Ne4 {[%emt 0:00:30]} 14. Bxe7 {[%emt 0:00:30]} Qxe7 {[%emt 0:00:30]} 15. Rfd1 {[%emt 0:00:30]} Ndf6 {[%emt 0:00:30]} 16. Nd2 {[%emt 0:00:30]} Nxc3 {[%emt 0:00:30]} 17. Qxc3 {[%emt 0:00:30]} Rac8 {[%emt 0:00:30]} 18. Bf3 {[%emt 0:00:30]} Rfd8 {[%emt 0:00:30]} 19. Qa3 {[%emt 0:00:30]} Rc7 {[%emt 0:00:30]} 20. Nb3 {[%emt 0:00:30]} Rdc8 {[%emt 0:00:30]} 21. h3 {[%emt 0:00:30]} Ba8 {[%emt 0:00:30]} 22. Rc2 {[%emt 0:00:30]} g6 {[%emt 0:00:30]} 23. Rdc1 {[%emt 0:00:30]} Nd7 {[%emt 0:00:30]} 24. Qa5 {[%emt 0:00:30]} Ne5 {[%emt 0:00:30]} 25. Be2 {[%emt 0:00:30]} c4 {[%emt 0:00:30]} 26. Nd4 {[%emt 0:00:30]} Nc6 {[%emt 0:00:30]} 27. Nxc6 {[%emt 0:00:30]} Bxc6 {[%emt 0:00:30]} 28. Qc3 {[%emt 0:00:30]} Qg5 {[%emt 0:00:30]} 29. Qd4 {[%emt 0:00:30]} Bd7 {[%emt 0:00:30]} 30. Bf3 {[%emt 0:00:30]} Bxh3 {[%emt 0:00:30]} 31. Qxd5 {[%emt 0:00:30]} Be6 {[%emt 0:00:30]} 32. Qxg5 {[%emt 0:00:30]} hxg5 {[%emt 0:00:30]} 33. Rc3 {[%emt 0:00:30]} Rd7 {[%emt 0:00:30]} 34. R1c2 {[%emt 0:00:30]} Rb8 {[%emt 0:00:30]} 35. e4 {[%emt 0:00:30]} Rdb7 {[%emt 0:00:30]} 36. Be2 {[%emt 0:00:30]} Rxb2 {[%emt 0:00:30]} 37. Bxc4 {[%emt 0:00:30]} Rxc2 {[%emt 0:00:30]} 38. Rxc2 {[%emt 0:00:30]} Rc8 {[%emt 0:00:30]} 39. Bb3 {[%emt 0:00:30]} Rxc2 {[%emt 0:00:30]} 40. Bxc2 {[%emt 0:00:30]} Bxa2 {[%emt 0:00:30]} 41. g3 {[%emt 0:30:30]} Kf8 {[%emt 0:30:30]} 42. f4 {[%emt 0:00:30]} gxf4 {[%emt 0:00:30]} 43. gxf4 {[%emt 0:00:30]} Ke7 {[%emt 0:00:30]} 44. Kf2 {[%emt 0:00:30]} Kd6 {[%emt 0:00:30]} 45. Ke3 {[%emt 0:00:30]} Kc5 {[%emt 0:00:30]} 46. Ba4 {[%emt 0:00:30]} Kb4 {[%emt 0:00:30]} 47. Be8 {[%emt 0:00:30]} a5 {[%emt 0:00:30]} 48. Kd2 {[%emt 0:00:30]} a4 {[%emt 0:00:30]} 49. Kc2 {[%emt 0:00:30]} Bb3+ {[%emt 0:00:30]} 50. Kb2 {[%emt 0:00:30]} a3+ {[%emt 0:00:30]} 51. Ka1 {[%emt 0:00:30]} Kc5 {[%emt 0:00:30]} 52. f5 {[%emt 0:00:30]} g5 {[%emt 0:00:30]} 53. e5 {[%emt 0:00:30]} g4 {[%emt 0:00:30]} 54. e6 {[%emt 0:00:30]} fxe6 {[%emt 0:00:30]} 0-1

[Event "Frauenbundesliga 2023-24"]
[Site "Deizisau"]
[Date "2024.03.24"]
[Round "8.7"]
[White "Javakhishvili, Lela"]
[Black "Rogule, Laura"]
[Result "1-0"]
[ECO "D35"]
[WhiteElo "2447"]
[BlackElo "2277"]
[Annotator "TA"]
[PlyCount "59"]
[EventDate "2023.10.09"]
[EventType "team-tourn"]
[EventCountry "GER"]
[SourceTitle "playchess.com"]
[Source "ChessBase"]
[SourceQuality "1"]
[WhiteTeam "SG 1871 Löberitz"]
[BlackTeam "SK Schwäbisch Hall"]
[TimeControl "40/5400+30:1800+30"]

{[%evp 19,58,24,33,31,32,9,58,50,47,41,65,62,59,57,57,54,73,82,81,79,212,211,248,222,214,227,289,295,284,280,1014,999,2912,2396,5143,5135,29997,29998,29998,29999,29999]} 1. d4 {[%emt 0:00:06]} d5 {[%emt 0:00:06]} 2. c4 {[%emt 0:00:29]} e6 {[%emt 0:00:13]} 3. Nc3 {[%emt 0:01:01]} Nf6 {[%emt 0:00:45]} 4. cxd5 {[%emt 0:02:43]} exd5 {[%emt 0:00:41]} 5. Bg5 {[%emt 0:00:10]} Be7 {[%emt 0:00:48]} 6. e3 {[%emt 0:00:59]} c6 {[%emt 0:01:10]} 7. Bd3 {[%emt 0:00:22]} Nbd7 {[%emt 0:01:37]} 8. Nf3 {[%emt 0:01:19]} Nh5 {[%emt 0:04:57]} 9. Bxe7 {[%emt 0:00:32]} Qxe7 {[%emt 0:00:06]} 10. O-O {[%emt 0:02:57]} O-O {[%emt 0:13:17]} 11. Qb1 {[%emt 0:00:31]} Nhf6 {[%emt 0:13:17]} 12. b4 {[%emt 0:00:17][%cal Bb2b4,Bb4b5][%mdl 32]} b6 {[%emt 0:15:01]} (12... a5 $11 {should be considered.}) 13. e4 {[%emt 0:12:42] White is slightly better.} dxe4 {[%emt 0:03:48]} 14. Nxe4 {[%emt 0:00:06]} g6 {[%emt 0:05:27]} 15. Re1 {[%emt 0:07:38] White is more active.} Nxe4 {[%emt 0:03:25]} 16. Bxe4 {[%emt 0:00:38]} Qd6 {[%emt 0:00:41]} 17. b5 {[%emt 0:13:06] Qc1 would now be deadly.} Bb7 {[%emt 0:00:31] [#]} 18. Ne5 $1 $36 {[%emt 0:01:24][%mdl 2048] Keeping Black busy.} Nxe5 {[%emt 0:06:18]} 19. dxe5 {[%emt 0:00:10]} Qd7 {[%emt 0:09:07] [#] A mistake that costs the game.} (19... Qe6 $16) 20. Qd1 $1 $18 {[%emt 0:06:09]} Qe8 {[%emt 0:07:00][%cal Oa8c8]} 21. Qd6 {[%emt 0:10:45][%cal Rb5c6]} Rd8 {[%emt 0:04:05]} 22. Qf6 {[%emt 0:00:07][%cal Rb5c6]} Rd2 {[%emt 0:05:38]} 23. bxc6 {[%emt 0:03:58]} Bc8 {[%emt 0:00:44]} 24. Rad1 {[%emt 0:02:57]} Rxa2 {[%emt 0:01:10]} (24... Qd8 25. Bf3 a5) 25. c7 {[%emt 0:02:11]} Ra5 {[%emt 0:01:50]} 26. Bc6 {[%emt 0:02:09]} Qe6 {[%emt 0:00:10]} 27. Rd8 {[%emt 0:01:31] Intending Rxf8+ and mate.} Rxe5 {[%emt 0:01:35]} 28. Rxf8+ {[%emt 0:00:19] White mates.} Kxf8 {[%emt 0:00:05]} 29. Qh8+ {[%emt 0:00:05]} Ke7 {[%emt 0:00:06]} 30. Qd8# {[%emt 0:00:12] Weighted Error Value: White=0.04 (flawless) /Black=0.57.  Mistake:       	---       	Black=3      Inaccurate:     	---       	Black=1      OK:         	White=3     	Black=4      Best:        	White=2     	Black=3      Strong:       	White=1     	---        Brilliant:      	White=1     	---} 1-0

[Event "Frauenbundesliga 2023-24"]
[Site "Deizisau"]
[Date "2024.03.24"]
[Round "8.8"]
[White "Berzina, Ilze"]
[Black "Ambartsumova, Karina"]
[Result "1-0"]
[ECO "B40"]
[WhiteElo "2150"]
[BlackElo "2418"]
[Annotator "TA"]
[PlyCount "93"]
[EventDate "2023.10.09"]
[EventType "team-tourn"]
[EventCountry "GER"]
[SourceTitle "playchess.com"]
[Source "ChessBase"]
[SourceQuality "1"]
[WhiteTeam "SG 1871 Löberitz"]
[BlackTeam "SK Schwäbisch Hall"]
[TimeControl "40/5400+30:1800+30"]

{[%evp 9,93,2,10,6,12,7,27,0,0,0,0,0,0,0,0,0,-8,-12,-20,-18,0,0,0,-35,-26,-42,-34,-45,-41,-40,-33,-57,-47,-67,-61,-47,-33,-132,-15,-19,-25,-18,0,0,-8,-30,-8,-26,-19,-49,-21,-50,-28,-32,-5,-39,-9,-10,0,0,24,11,33,19,131,45,44,44,51,36,497,477,473,504,463,508,516,440,444,437,635,634,757,751,737,655]} 1. e4 {[%emt 0:00:04]} c5 {[%emt 0:00:27]} 2. Nf3 {[%emt 0:00:14]} e6 {[%emt 0:00:33]} 3. g3 {[%emt 0:01:57]} Nc6 {[%emt 0:04:14]} 4. Bg2 {[%emt 0:00:31]} Nf6 {[%emt 0:00:59]} 5. Qe2 {[%emt 0:00:34]} e5 {[%emt 0:00:56]} 6. O-O {[%emt 0:00:38]} Be7 {[%emt 0:00:33]} 7. d3 {[%emt 0:01:17]} h6 {[%emt 0:06:24]} 8. c3 {[%emt 0:05:16] White has an edge.} O-O {[%emt 0:01:37]} 9. Na3 {[%emt 0:00:32]} Re8 {[%emt 0:03:16]} 10. Nc4 {[%emt 0:02:09]} Bf8 {[%emt 0:02:48]} 11. Ne3 {[%emt 0:04:32]} d5 {[%emt 0:03:49]} 12. exd5 {[%emt 0:10:18]} Nxd5 {[%emt 0:00:29]} 13. Nxd5 {[%emt 0:04:10]} Qxd5 {[%emt 0:00:08]} 14. Nd2 {[%emt 0:00:50]} Qd8 {[%emt 0:06:21]} 15. Nc4 {[%emt 0:04:39]} Bf5 {[%emt 0:06:59]} 16. Rd1 {[%emt 0:00:53]} Qd7 {[%emt 0:02:29]} 17. Ne3 {[%emt 0:02:43]} Be6 {[%emt 0:07:32]} 18. b3 {[%emt 0:07:52]} g6 {[%emt 0:08:55]} 19. Ba3 {[%emt 0:07:02]} Rad8 {[%emt 0:05:40]} 20. Qf3 {[%emt 0:11:35]} f5 {[%emt 0:02:37]} 21. h3 {[%emt 0:09:48]} Qf7 {[%emt 0:03:53]} 22. Qe2 {[%emt 0:02:59]} Qf6 {[%emt 0:12:08]} 23. Re1 {[%emt 0:01:49] [#]} (23. Rd2 $15) 23... Bf7 {[%emt 0:02:01]} (23... c4 $1 $17 {[%cal Rc4d3]} 24. d4 Bxa3) 24. Rad1 $11 {[%emt 0:01:17]} b5 {[%emt 0:02:46]} 25. Qf3 {[%emt 0:01:32]} Rc8 {[%emt 0:01:04]} (25... e4 {seems wilder.} 26. dxe4 Qxc3 27. exf5 Nd4) 26. Bb2 {[%emt 0:02:55]} Bg7 {[%emt 0:02:08]} 27. Nd5 {[%emt 0:00:29]} Qd6 {[%emt 0:00:50]} 28. Ne3 {[%emt 0:02:30][%cal Bd5e3,Be3f1,Bf1h2,Bh2f3,Bf3g5][%mdl 32]} Ne7 {[%emt 0:03:52]} 29. h4 {[%emt 0:02:15]} h5 {[%emt 0:01:13]} 30. Qe2 {[%emt 0:01:46]} a6 {[%emt 0:01:58]} 31. Nf1 {[%emt 0:00:24]} Rcd8 {[%emt 0:01:32]} 32. Nh2 {[%emt 0:00:21]} Nc6 {[%emt 0:01:35]} 33. Nf3 {[%emt 0:00:18]} Re7 {[%emt 0:03:56]} 34. Ng5 {[%emt 0:01:30]} Be8 {[%emt 0:00:38]} 35. a3 {[%emt 0:04:13]} Bf6 {[%emt 0:00:39]} 36. b4 {[%emt 0:00:37]} Bd7 {[%emt 0:00:50] [#]} (36... Bxg5 $11 {keeps the balance.} 37. hxg5 a5) 37. Qe3 {[%emt 0:00:48] White is more active.} ({White should try} 37. Bc1 $1 $16) 37... cxb4 $14 {[%emt 0:00:08]} 38. axb4 {[%emt 0:00:08]} Nb8 {[%emt 0:00:48]} 39. c4 {[%emt 0:01:02] Strongly threatening c5.} Qxb4 {[%emt 0:00:33][%mdl 8192] Loses the game.} (39... Bc6 $1 $14) 40. Qb6 $1 $18 {[%emt 0:00:34][%csl LRd8,LRf6] White is clearly winning.} Kg7 {[%emt 0:00:35]} 41. Qxd8 {[%emt 0:30:48]} Re8 {[%emt 0:04:47]} 42. Qc7 {[%emt 0:00:00]} Qxb2 {[%emt 0:10:26]} 43. cxb5 {[%emt 0:00:00]} axb5 {[%emt 0:01:18]} 44. Rb1 {[%emt 0:00:00][%cal Bd1b1,Bb1b5,Bb5d5][%mdl 32]} Qa2 {[%emt 0:03:27]} (44... Qd4 $142 45. Rxb5 Bxg5 46. hxg5 (46. Rxb8 Rxb8 47. Qxb8 Bf6 $18) 46... Na6) 45. Rxb5 {[%emt 0:00:00]} Rc8 {[%emt 0:01:05]} 46. Qb7 {[%emt 0:00:00]} e4 {[%emt 0:04:05]} 47. Rd5 {[%emt 0:00:00] Weighted Error Value: White=0.15 (very precise) /Black=0.43.  Loses game:     	---       	Black=1      Mistake:       	White=2     	Black=3      Inaccurate:     	White=5     	Black=3      OK:         	White=18    	Black=12     Best:        	White=2     	Black=2} 1-0

[Event "Frauenbundesliga 2023-24"]
[Site "Deizisau"]
[Date "2024.03.24"]
[Round "8.9"]
[White "Milliet, Sophie"]
[Black "Endress, Anna"]
[Result "1-0"]
[ECO "E05"]
[WhiteElo "2386"]
[BlackElo "2094"]
[Annotator "RC"]
[PlyCount "77"]
[EventDate "2023.10.09"]
[EventType "team-tourn"]
[EventCountry "GER"]
[SourceTitle "playchess.com"]
[Source "ChessBase"]
[SourceQuality "1"]
[WhiteTeam "SK Schwäbisch Hall"]
[BlackTeam "SG 1871 Löberitz"]
[TimeControl "40/5400+30:1800+30"]

1. d4 {[%emt 0:00:03]} d5 {[%emt 0:00:59]} 2. c4 {[%emt 0:00:07]} e6 {[%emt 0:01:10]} 3. Nf3 {[%emt 0:00:05]} Nf6 {[%emt 0:00:33]} 4. g3 {[%emt 0:00:07]} Be7 {[%emt 0:11:19]} 5. Bg2 {[%emt 0:00:12]} O-O {[%emt 0:00:14]} 6. O-O {[%emt 0:00:04]} dxc4 {[%emt 0:06:03]} 7. Qc2 {[%emt 0:00:08]} a6 {[%emt 0:04:38]} 8. a4 {[%emt 0:00:05]} Nc6 {[%emt 0:10:12]} 9. Qxc4 {[%emt 0:15:58]} Qd5 {[%emt 0:03:20]} 10. Qd3 {[%emt 0:19:54]} Nb4 {[%emt 0:06:52]} 11. Qd1 {[%emt 0:00:18]} c5 {[%emt 0:01:19]} 12. Nc3 {[%emt 0:04:00]} Qd8 {[%emt 0:00:22]} 13. Bf4 {[%emt 0:06:10]} Nbd5 {[%emt 0:03:34]} 14. Nxd5 {[%emt 0:04:05]} Nxd5 {[%emt 0:01:17]} 15. dxc5 {[%emt 0:01:30]} Bxc5 {[%emt 0:05:11]} 16. Qc2 {[%emt 0:03:07]} Qe7 {[%emt 0:06:31]} 17. Ng5 {[%emt 0:04:14]} f5 {[%emt 0:07:03]} 18. Rfd1 {[%emt 0:01:22]} h6 {[%emt 0:01:17]} 19. Nxe6 {[%emt 0:03:38]} Bxe6 {[%emt 0:05:27]} 20. Bxd5 {[%emt 0:00:04]} Rac8 {[%emt 0:01:26]} 21. Qb3 {[%emt 0:01:48]} Bxd5 {[%emt 0:00:09]} 22. Rxd5 {[%emt 0:03:39]} Kh8 {[%emt 0:00:58]} 23. Re5 {[%emt 0:10:54]} Qf6 {[%emt 0:03:28]} 24. Rd1 {[%emt 0:01:56]} b6 {[%emt 0:01:32]} 25. Rd7 {[%emt 0:01:51]} Rcd8 {[%emt 0:03:11]} 26. Qd5 {[%emt 0:04:50]} Rxd7 {[%emt 0:03:22]} 27. Qxd7 {[%emt 0:00:05]} Qd6 {[%emt 0:08:48]} 28. Rd5 {[%emt 0:02:49]} Qxd7 {[%emt 0:00:50]} 29. Rxd7 {[%emt 0:00:01]} Re8 {[%emt 0:00:32]} 30. Kf1 {[%emt 0:00:26]} Re4 {[%emt 0:00:45]} 31. b3 {[%emt 0:00:54]} Rb4 {[%emt 0:00:46]} 32. Rd3 {[%emt 0:01:39]} g5 {[%emt 0:02:25]} 33. Bd2 {[%emt 0:00:27]} Re4 {[%emt 0:00:34]} 34. Rd5 {[%emt 0:02:54]} f4 {[%emt 0:00:46]} 35. gxf4 {[%emt 0:00:21]} gxf4 {[%emt 0:00:07]} 36. f3 {[%emt 0:00:17]} Re6 {[%emt 0:00:35]} 37. Bxf4 {[%emt 0:00:21]} Rg6 {[%emt 0:00:53]} 38. Bg3 {[%emt 0:00:27]} Re6 {[%emt 0:00:14]} 39. e4 {[%emt 0:00:18]} 1-0

[Event "Frauenbundesliga 2023-24"]
[Site "Deizisau"]
[Date "2024.03.24"]
[Round "8.10"]
[White "Ter-Avetisjana, Agnesa Stepania"]
[Black "Melia, Salome"]
[Result "1-0"]
[ECO "D05"]
[WhiteElo "2114"]
[BlackElo "2337"]
[Annotator "RC"]
[PlyCount "129"]
[EventDate "2023.10.09"]
[EventType "team-tourn"]
[EventCountry "GER"]
[SourceTitle "playchess.com"]
[Source "ChessBase"]
[SourceQuality "1"]
[WhiteTeam "SG 1871 Löberitz"]
[BlackTeam "SK Schwäbisch Hall"]
[TimeControl "40/5400+30:1800+30"]

1. d4 {[%emt 0:00:02]} Nf6 {[%emt 0:00:51]} 2. Nf3 {[%emt 0:00:08]} e6 {[%emt 0:02:41]} 3. e3 {[%emt 1:31:50]} b6 {[%emt 0:05:02]} 4. Bd3 {[%emt 0:00:00]} Bb7 {[%emt 1:23:56]} 5. O-O {[%emt 0:01:00]} d5 {[%emt 0:00:00]} 6. b3 {[%emt 0:00:00]} Bd6 {[%emt 0:00:00]} 7. Bb2 {[%emt 0:01:00]} O-O {[%emt 0:00:00]} 8. Ne5 {[%emt 0:00:30]} c5 {[%emt 0:00:00]} 9. f4 {[%emt 0:00:00]} cxd4 {[%emt 0:00:00]} 10. exd4 {[%emt 0:00:00]} Ne4 {[%emt 0:00:00]} 11. Qe2 {[%emt 0:00:00]} f6 {[%emt 0:00:00]} 12. Nc4 {[%emt 0:00:00]} Bc7 {[%emt 0:00:00]} 13. Nbd2 b5 {[%emt 0:00:00]} 14. Nxe4 {[%emt 0:00:00]} dxe4 {[%emt 0:00:00]} 15. Bxe4 {[%emt 0:00:00]} Bxe4 {[%emt 0:00:00]} 16. Qxe4 {[%emt 0:00:00]} Qd5 {[%emt 0:00:00]} 17. Qxd5 {[%emt 0:00:00]} exd5 {[%emt 0:00:00]} 18. Ne3 {[%emt 0:00:00]} Rd8 {[%emt 0:00:00]} 19. c3 {[%emt 0:00:00]} Nc6 {[%emt 0:00:00]} 20. Ba3 {[%emt 0:00:00]} Rd7 {[%emt 0:00:00]} 21. Bc5 {[%emt 0:00:00]} Re8 {[%emt 0:00:00]} 22. Rae1 {[%emt 0:00:00]} Kf7 {[%emt 0:00:00]} 23. Nc2 {[%emt 0:00:00]} Rxe1 {[%emt 0:00:00]} 24. Nxe1 {[%emt 0:00:00]} Rd8 {[%emt 0:00:00]} 25. g3 {[%emt 0:00:00]} Re8 {[%emt 0:00:00]} 26. Kf2 {[%emt 0:00:00]} h5 {[%emt 0:00:00]} 27. Nd3 {[%emt 0:00:00]} a5 {[%emt 0:00:00]} 28. Re1 {[%emt 0:00:00]} Rxe1 {[%emt 0:00:00]} 29. Nxe1 {[%emt 0:00:00]} Ke6 {[%emt 0:00:00]} 30. Kf3 {[%emt 0:00:00]} g5 {[%emt 0:00:00]} 31. Ng2 {[%emt 0:00:00]} g4+ {[%emt 0:06:13]} 32. Ke2 {[%emt 0:00:00]} f5 {[%emt 0:00:30]} 33. Ne3 {[%emt 0:00:00]} Nb8 {[%emt 0:03:34]} 34. c4 {[%emt 0:00:00]} bxc4 {[%emt 0:00:30]} 35. bxc4 {[%emt 0:00:00]} dxc4 {[%emt 0:00:30]} 36. d5+ {[%emt 0:00:00]} Kf6 {[%emt 0:00:30]} 37. Bd4+ {[%emt 0:00:00]} Ke7 {[%emt 0:00:30]} 38. Nxf5+ {[%emt 0:00:24]} Kd7 {[%emt 0:03:25]} 39. Ne3 {[%emt 0:05:42]} Na6 {[%emt 0:00:30]} 40. a3 {[%emt 0:00:30]} a4 {[%emt 0:00:30]} 41. Nxc4 {[%emt 0:30:30]} Bd6 {[%emt 0:30:30]} 42. Ke3 {[%emt 0:00:30]} Nc7 {[%emt 0:00:30]} 43. Nxd6 {[%emt 0:00:30]} Nxd5+ {[%emt 0:00:30]} 44. Ke4 {[%emt 0:00:30]} Kxd6 {[%emt 0:00:30]} 45. Be5+ {[%emt 0:00:30]} Kc6 {[%emt 0:00:30]} 46. f5 {[%emt 0:00:30]} Nb6 {[%emt 0:00:30]} 47. f6 {[%emt 0:00:30]} Kd7 {[%emt 0:00:30]} 48. Kf5 {[%emt 0:00:30]} Nc4 {[%emt 0:00:30]} 49. Bc3 {[%emt 0:00:30]} Nd6+ {[%emt 0:00:30]} 50. Kg6 {[%emt 0:00:30]} Ke6 {[%emt 0:00:30]} 51. Bb4 {[%emt 0:00:30]} Nf7 {[%emt 0:00:30]} 52. Be7 {[%emt 0:00:30]} Ne5+ {[%emt 0:00:30]} 53. Kxh5 {[%emt 0:00:30]} Kf5 {[%emt 0:00:30]} 54. Kh6 {[%emt 0:00:30]} Nf7+ {[%emt 0:00:30]} 55. Kg7 {[%emt 0:00:30]} Ke6 {[%emt 0:00:30]} 56. Kg6 {[%emt 0:00:30]} Ne5+ {[%emt 0:00:30]} 57. Kg5 {[%emt 0:00:30]} Nf3+ {[%emt 0:00:30]} 58. Kxg4 {[%emt 0:00:30]} Nxh2+ {[%emt 0:00:30]} 59. Kf4 {[%emt 0:00:30]} Nf1 {[%emt 0:00:30]} 60. g4 {[%emt 0:00:30]} Nd2 {[%emt 0:00:30]} 61. g5 {[%emt 0:00:30]} Nc4 {[%emt 0:00:30]} 62. g6 {[%emt 0:00:30]} Nb6 {[%emt 0:00:30]} 63. g7 {[%emt 0:00:30]} Kf7 {[%emt 0:00:30]} 64. Ke5 {[%emt 0:00:30]} Nc4+ {[%emt 0:00:30]} 65. Kd4 {[%emt 0:00:30]} 1-0

[Event "Frauenbundesliga 2023-24"]
[Site "Deizisau"]
[Date "2024.03.24"]
[Round "8.11"]
[White "Daulyte-Cornette, Deimante"]
[Black "Giebel, Christine"]
[Result "1-0"]
[ECO "C13"]
[WhiteElo "2375"]
[BlackElo "1877"]
[Annotator "RC"]
[PlyCount "61"]
[EventDate "2023.10.09"]
[EventType "team-tourn"]
[EventCountry "GER"]
[SourceTitle "playchess.com"]
[Source "ChessBase"]
[SourceQuality "1"]
[WhiteTeam "SK Schwäbisch Hall"]
[BlackTeam "SG 1871 Löberitz"]
[TimeControl "40/5400+30:1800+30"]

1. e4 {[%emt 0:00:03]} e6 {[%emt 0:00:05]} 2. d4 {[%emt 0:00:13]} d5 {[%emt 0:00:06]} 3. Nc3 {[%emt 0:00:49]} Nf6 {[%emt 0:00:08]} 4. Bg5 {[%emt 0:00:24]} dxe4 {[%emt 0:03:10]} 5. Nxe4 {[%emt 0:00:07]} Be7 {[%emt 0:00:11]} 6. Bxf6 {[%emt 0:00:44]} gxf6 {[%emt 0:03:07]} 7. Qd2 {[%emt 0:01:36]} f5 {[%emt 0:16:20]} 8. Nc3 {[%emt 0:01:06]} Nd7 {[%emt 0:01:35]} 9. g3 {[%emt 0:03:31]} Nf6 {[%emt 0:06:32]} 10. Bg2 {[%emt 0:05:18]} c6 {[%emt 0:02:49]} 11. O-O-O {[%emt 0:06:04]} Qa5 {[%emt 0:11:38]} 12. Kb1 {[%emt 0:04:35]} Bd7 {[%emt 0:04:51]} 13. Nf3 {[%emt 0:10:48]} h5 {[%emt 0:17:43]} 14. Ne5 {[%emt 0:04:11]} Qc7 {[%emt 0:09:00]} 15. Rhe1 {[%emt 0:05:29]} Nd5 {[%emt 0:05:56]} 16. Nxd5 {[%emt 0:10:48]} cxd5 {[%emt 0:00:32]} 17. c4 {[%emt 0:05:30]} dxc4 {[%emt 0:03:15]} 18. d5 {[%emt 0:00:58]} Bf6 {[%emt 0:05:57]} 19. Nxd7 {[%emt 0:17:46]} Qxd7 {[%emt 0:00:10]} 20. Qc2 {[%emt 0:00:52]} Qb5 {[%emt 0:04:17]} 21. dxe6 {[%emt 0:02:20]} O-O {[%emt 0:00:21]} 22. exf7+ {[%emt 0:02:15]} Kxf7 {[%emt 0:00:48]} 23. Bd5+ {[%emt 0:00:53]} Kg6 {[%emt 0:00:40]} 24. Bxc4 {[%emt 0:00:28]} Qb4 {[%emt 0:01:06]} 25. a3 {[%emt 0:00:40]} Qa5 {[%emt 0:00:50]} 26. h3 {[%emt 0:05:04]} Rac8 {[%emt 0:00:46]} 27. g4 {[%emt 0:00:50]} Rfd8 {[%emt 0:01:08]} 28. gxf5+ {[%emt 0:05:59]} Kh7 {[%emt 0:00:01]} 29. Qe2 {[%emt 0:00:32]} Rxc4 {[%emt 0:01:14]} 30. Qxh5+ {[%emt 0:01:22]} Kg7 {[%emt 0:00:41]} 31. Qg6+ {[%emt 0:00:16]} 1-0

[Event "Frauenbundesliga 2023-24"]
[Site "Deizisau"]
[Date "2024.03.24"]
[Round "8.12"]
[White "Schuster, Rebekka"]
[Black "Papp, Petra"]
[Result "0-1"]
[ECO "B50"]
[WhiteElo "1879"]
[BlackElo "2267"]
[Annotator "RC"]
[PlyCount "72"]
[EventDate "2023.10.09"]
[EventType "team-tourn"]
[EventCountry "GER"]
[SourceTitle "playchess.com"]
[Source "ChessBase"]
[SourceQuality "1"]
[WhiteTeam "SG 1871 Löberitz"]
[BlackTeam "SK Schwäbisch Hall"]
[TimeControl "40/5400+30:1800+30"]

1. e4 {[%emt 0:00:03]} c5 {[%emt 0:00:33]} 2. Nf3 {[%emt 0:00:11]} d6 {[%emt 0:00:08]} 3. Bc4 {[%emt 0:00:38]} Nf6 {[%emt 0:01:31]} 4. d3 {[%emt 0:00:09]} Nc6 {[%emt 0:01:26]} 5. c3 {[%emt 0:00:48]} g6 {[%emt 0:00:45]} 6. O-O {[%emt 0:09:19]} Bg7 {[%emt 0:00:29]} 7. Bb3 {[%emt 0:00:30]} O-O {[%emt 0:01:26]} 8. Re1 {[%emt 0:02:26]} e5 {[%emt 0:08:52]} 9. Nbd2 {[%emt 0:02:00]} h6 {[%emt 0:08:57]} 10. Nf1 {[%emt 0:01:32]} d5 {[%emt 0:03:03]} 11. exd5 {[%emt 0:04:52]} Nxd5 {[%emt 0:00:29]} 12. Ne3 {[%emt 0:03:25]} Be6 {[%emt 0:11:15]} 13. Nc4 {[%emt 0:04:04]} Qc7 {[%emt 0:02:53]} 14. Qe2 {[%emt 0:02:57]} Nf4 {[%emt 0:11:55]} 15. Qe3 {[%emt 0:03:40]} Rfe8 {[%emt 0:12:52]} 16. Bc2 {[%emt 0:37:19]} b6 {[%emt 0:04:44]} 17. Bd2 {[%emt 0:06:10]} Rad8 {[%emt 0:02:26]} 18. Rad1 {[%emt 0:00:19]} Bg4 {[%emt 0:05:15]} 19. h3 {[%emt 0:02:10]} Bf5 {[%emt 0:00:44]} 20. Bc1 {[%emt 0:00:36]} g5 {[%emt 0:01:56]} 21. h4 {[%emt 0:06:30]} g4 {[%emt 0:03:10]} 22. Nh2 {[%emt 0:01:17]} b5 {[%emt 0:03:41]} 23. Na3 {[%emt 0:01:48]} Qb7 {[%emt 0:03:17]} 24. Qg3 {[%emt 0:03:00]} Nh5 {[%emt 0:02:00]} 25. Qe3 {[%emt 0:00:07]} Qe7 {[%emt 0:04:18]} 26. Nxb5 {[%emt 0:03:01]} c4 {[%emt 0:03:03]} 27. Na3 {[%emt 0:00:53]} cxd3 {[%emt 0:01:00]} 28. Bxd3 {[%emt 0:00:06]} e4 {[%emt 0:01:14]} 29. Bb5 {[%emt 0:01:07]} Rc8 {[%emt 0:01:05]} 30. g3 {[%emt 0:01:39]} Qb7 {[%emt 0:00:30]} 31. Be2 {[%emt 0:01:14]} Ne5 {[%emt 0:01:03]} 32. Nb5 {[%emt 0:01:22]} Bf8 {[%emt 0:00:00]} 33. Nd6 {[%emt 0:00:49]} Qd7 {[%emt 0:00:16]} 34. Nxe8 {[%emt 0:00:38]} Qxe8 {[%emt 0:00:01]} 35. Qxa7 {[%emt 0:00:49]} Nxg3 {[%emt 0:00:19]} 36. fxg3 {[%emt 0:00:07]} Bc5+ {[%emt 0:00:01]} 0-1